[Event "Tatry Open 2018"]
[Site "Tatranska Lomnica"]
[Date "2018.10.07"]
[Round "9"]
[White "Matras, Ondrej"]
[Black "Paulovic, Martin"]
[Result "1-0"]
[ECO "A52"]
[WhiteElo "2224"]
[BlackElo "2052"]
[Annotator "NA"]
[PlyCount "129"]
[EventDate "2018.09.30"]
[EventType "swiss"]
[EventCountry "SVK"]
[SourceTitle "playchess.com"]
[Source "ChessBase"]
[SourceQuality "1"]
[TimeControl "40/5400+30:1800+30"]

{[%evp 12,129,26,24,32767,32767,32767,32767,24,15,45,40,38,40,37,38,39,35,39,37,29,28,35,11,29,7,14,16,1,9,9,20,22,12,20,32767,0,4,0,32767,0,0,0,32767,12,-12,0,32767,32767,32767,32767,0,32767,32767,-45,32767,32767,32767,32767,32767,32767,32767,-15,-50,32767,-15,32767,32767,0,-49,-60,32767,32767,32767,32767,32767,32767,32767,32767,32767,32767,0,7,32767,13,0,52,32767,32767,32767,32767,32767,32767,32767,58,32767,28,32767,32767,32767,47,8,39,32767,32767,0,32767,68,80,81,87,0,0,8,32767,182,32767,32767,29993,29994]} 1. d4 {[%emt 0:00:00]} Nf6 {[%emt 0:00:00]} 2. c4 {[%emt 0:00:00]} e5 {[%emt 0:01:37]} 3. dxe5 {[%emt 0:00:00]} Ng4 {[%emt 0:00:07]} 4. Bf4 {[%emt 0:00:00]} Nc6 {[%emt 0:00:14]} 5. Nf3 {[%emt 0:00:00]} Bb4+ {[%emt 0:00:08]} 6. Nbd2 {[%emt 0:00:00]} Qe7 {[%emt 0:00:28]} 7. e3 {[%emt 0:00:00]} Ngxe5 {[%emt 0:00:15]} 8. Nxe5 {[%emt 0:00:00]} Nxe5 {[%emt 0:00:13]} 9. Be2 {[%emt 0:00:00]} O-O {[%emt 0:02:30]} 10. O-O {[%emt 0:00:00]} Ng6 {[%emt 0:06:00]} 11. Bg3 {[%emt 0:00:41]} Bd6 {[%emt 0:00:55]} 12. Bxd6 {[%emt 0:03:53]} Qxd6 {[%emt 0:00:25]} 13. Qc2 {[%emt 0:00:23]} Qe7 {[%emt 0:21:01] A52: Budapest Gambit} 14. c5 {[%emt 0:01:17]} d6 {[%emt 0:02:43]} 15. cxd6 {[%emt 0:04:51] LiveBook: 12 Games} Qxd6 {[%emt 0:00:15]} 16. Rac1 {[%emt 0:00:58]} c6 {[%emt 0:00:15]} 17. Ne4 {[%emt 0:01:26]} Qe7 {[%emt 0:01:14]} 18. Nc5 {[%emt 0:01:46]} b6 {[%emt 0:01:21]} 19. Ne4 $146 {[%emt 0:06:12]} ({Predecessor:} 19. Na4 c5 20. Bf3 Bb7 21. Bxb7 Qxb7 {½-½ (46) Arlandi,E (2445)-Marchand,F (2220) Turin 1996}) 19... Bf5 {[%emt 0:11:59]} 20. Bd3 $1 {[%emt 0:00:17]} Rad8 {[%emt 0:00:32]} 21. Nf6+ {[%emt 0:01:11]} Qxf6 {[%emt 0:00:12]} 22. Bxf5 {[%emt 0:00:05]} c5 {[%emt 0:00:28]} 23. g3 {[%emt 0:02:14]} Rd6 {[%emt 0:02:07]} 24. Rcd1 {[%emt 0:03:18]} Rfd8 {[%emt 0:00:09]} 25. Rxd6 {[%emt 0:00:10]} Qxd6 {[%emt 0:00:42]} 26. Qa4 {[%emt 0:07:56]} Qe5 {[%emt 0:05:09]} 27. Qc2 {[%emt 0:05:21]} Qd6 {[%emt 0:00:11]} 28. h4 {[%emt 0:08:50]} Qd2 29. Qb1 {[%emt 0:01:16]} Qe2 {[%emt 0:04:00]} 30. Re1 {[%emt 0:03:12]} Qf3 {[%emt 0:05:55]} 31. Be4 {[%emt 0:00:40]} Qg4 {[%emt 0:04:10]} 32. Bxg6 {[%emt 0:00:47]} hxg6 {[%emt 0:02:38]} 33. Qc2 {[%emt 0:03:10]} Qf3 {[%emt 0:00:30]} 34. Re2 {[%emt 0:00:40]} Qd5 35. a3 {[%emt 0:00:30]} c4 {[%emt 0:02:40]} 36. e4 {[%emt 0:01:38]} Qd4 {[%emt 0:01:21]} 37. Kf1 {[%emt 0:00:26]} Kf8 {[%emt 0:00:52]} 38. Ke1 Re8 {[%emt 0:07:15]} 39. Kf1 {[%emt 0:02:01]} Rd8 {[%emt 0:03:01]} 40. Qc1 {[%emt 0:09:52]} Qd1+ {[%emt 0:00:07]} 41. Qxd1 {[%emt 0:30:30]} Rxd1+ {[%emt 0:30:30]} 42. Kg2 Rd3 43. Rc2 {[%emt 0:02:08]} b5 {[%emt 0:01:05]} 44. Kf1 {[%emt 0:00:40]} Ke7 {[%emt 0:00:47]} 45. Ke2 {[%emt 0:00:02]} Ke6 {[%emt 0:00:24]} 46. Rc3 {[%emt 0:03:46]} Rd4 {[%emt 0:02:13]} 47. Ke3 {[%emt 0:00:58]} Rd1 {[%emt 0:08:41]} 48. a4 {[%emt 0:03:43]} Rb1 49. axb5 {[%emt 0:00:14]} Rxb2 {[%emt 0:00:37]} 50. Rxc4 {[%emt 0:00:32]} Rxb5 {[%emt 0:00:00]} 51. Rc6+ {[%emt 0:00:09]} Kd7 {[%emt 0:00:15]} 52. Ra6 {[%emt 0:03:24]} Rb7 {[%emt 0:01:12]} 53. e5 {[%emt 0:00:23]} Ke7 54. Kd4 Rd7+ {[%emt 0:00:57]} 55. Ke4 {[%emt 0:01:38]} Rb7 56. f4 {[%emt 0:00:57]} f6 {[%emt 0:02:17]} 57. g4 {[%emt 0:06:50]} Rb4+ {[%emt 0:00:48]} 58. Kd5 {[%emt 0:00:21]} Rb5+ {[%emt 0:00:25]} 59. Kc4 $1 {[%emt 0:01:14]} Rb7 {[%emt 0:00:18]} 60. g5 {[%emt 0:02:52]} fxe5 {[%emt 0:01:16]} 61. fxe5 {[%emt 0:01:56]} ({Better is} 61. Rxg6 $16 Kf7 62. f5) 61... Kf7 {[%emt 0:01:16]} 62. Kd5 {[%emt 0:00:40]} Rb5+ {[%emt 0:00:22] [#]} 63. Kd6 $1 {[%emt 0:00:33]} Rb6+ {[%emt 0:00:50]} 64. Rxb6 {[%emt 0:00:03]} axb6 {[%emt 0:00:12]} 65. Kd7 {[%emt 0:00:02] Ke6+} 1-0

[Event "Tatry Open 2018"]
[Site "Tatranska Lomnica"]
[Date "2018.10.07"]
[Round "9"]
[White "Kostolansky, Sebastian Lukas"]
[Black "Pacher, Milan"]
[Result "1/2-1/2"]
[ECO "B40"]
[WhiteElo "2209"]
[BlackElo "2457"]
[Annotator "ChessBase"]
[PlyCount "101"]
[EventDate "2018.09.30"]
[EventType "swiss"]
[EventCountry "SVK"]
[SourceTitle "playchess.com"]
[Source "ChessBase"]
[SourceQuality "1"]
[TimeControl "40/5400+30:1800+30"]

1. e4 {[%emt 0:00:00]} c5 {[%emt 0:00:00]} 2. Nf3 {[%emt 0:00:00]} e6 {[%emt 0:00:00]} 3. d4 {[%emt 0:00:00]} cxd4 {[%emt 0:00:00]} 4. Nxd4 {[%emt 0:00:01]} Nf6 {[%emt 0:00:00]} 5. Bd3 {[%emt 0:00:07]} Nc6 {[%emt 0:00:00]} 6. Nxc6 {[%emt 0:00:23]} bxc6 {[%emt 0:00:01]} 7. O-O {[%emt 0:00:34]} d5 {[%emt 0:00:05]} 8. Nd2 {[%emt 0:00:48]} Be7 {[%emt 0:00:06]} 9. Qe2 {[%emt 0:01:55]} O-O {[%emt 0:00:09]} 10. b3 {[%emt 0:01:28]} a5 {[%emt 0:00:36]} 11. a4 {[%emt 0:18:08]} Nd7 {[%emt 0:07:01]} 12. exd5 {[%emt 0:18:23]} exd5 {[%emt 0:11:54]} 13. Re1 {[%emt 0:02:38]} Bb4 {[%emt 0:04:13]} 14. Ba3 {[%emt 0:11:58]} Nc5 {[%emt 0:02:07]} 15. Bxb4 {[%emt 0:03:10]} axb4 {[%emt 0:00:02]} 16. Rad1 {[%emt 0:11:58]} Nxd3 {[%emt 0:03:59]} 17. Qxd3 {[%emt 0:06:59]} Qf6 {[%emt 0:00:49]} 18. Nf3 {[%emt 0:04:18]} Bf5 {[%emt 0:01:12]} 19. Qd2 {[%emt 0:00:53]} Be4 {[%emt 0:07:21]} 20. Nd4 {[%emt 0:05:33]} c5 {[%emt 0:01:34]} 21. f3 {[%emt 0:00:15]} Bg6 {[%emt 0:00:56]} 22. Ne2 {[%emt 0:00:05]} c4 {[%emt 0:04:33]} 23. Nd4 {[%emt 0:02:08]} c3 {[%emt 0:00:27]} 24. Qe2 {[%emt 0:00:59]} h6 {[%emt 0:03:08]} 25. Qe5 {[%emt 0:04:34]} Qb6 {[%emt 0:02:55]} 26. Kf1 {[%emt 0:00:34]} Kh7 {[%emt 0:04:40]} 27. Re3 {[%emt 0:03:30]} f6 {[%emt 0:09:35]} 28. Qf4 {[%emt 0:00:37]} Rae8 {[%emt 0:00:13]} 29. Rde1 {[%emt 0:00:48]} Rxe3 {[%emt 0:03:56]} 30. Rxe3 {[%emt 0:00:08]} Be4 {[%emt 0:00:57]} 31. fxe4 {[%emt 0:01:08]} Qxd4 {[%emt 0:00:06]} 32. Rd3 {[%emt 0:00:05]} Qxe4 {[%emt 0:00:21]} 33. Qxe4+ {[%emt 0:01:00]} dxe4 {[%emt 0:00:02]} 34. Rd4 {[%emt 0:00:08]} f5 {[%emt 0:00:05]} 35. Ke2 {[%emt 0:01:38]} Kg6 {[%emt 0:07:23]} 36. Ke3 {[%emt 0:00:20]} Rb8 {[%emt 0:00:22]} 37. Kf4 {[%emt 0:00:20]} Kf6 {[%emt 0:03:19]} 38. Rd6+ {[%emt 0:00:33]} Ke7 {[%emt 0:00:08]} 39. Rd5 {[%emt 0:00:53]} g6 {[%emt 0:00:05]} 40. g4 {[%emt 0:00:32]} fxg4 {[%emt 0:05:16]} 41. Re5+ {[%emt 0:19:15]} Kf6 {[%emt 0:21:35]} 42. Rxe4 {[%emt 0:02:33]} h5 {[%emt 0:00:11]} 43. Rc4 {[%emt 0:05:20]} g5+ {[%emt 0:02:07]} 44. Ke3 {[%emt 0:00:08]} Ke6 {[%emt 0:05:58]} 45. Rc6+ {[%emt 0:03:48]} Kd7 {[%emt 0:04:24]} 46. Rc4 {[%emt 0:00:52]} Rf8 {[%emt 0:01:03]} 47. Rd4+ {[%emt 0:00:24]} Kc6 {[%emt 0:06:57]} 48. Rc4+ {[%emt 0:00:05]} Kd6 {[%emt 0:00:15]} 49. Rd4+ {[%emt 0:00:05]} Kc6 {[%emt 0:00:04]} 50. Rc4+ {[%emt 0:00:05]} Kd6 {[%emt 0:00:02]} 51. Rd4+ {[%emt 0:00:05]} 1/2-1/2

[Event "Tatry Open 2018"]
[Site "Tatranska Lomnica"]
[Date "2018.10.07"]
[Round "9"]
[White "Kostelny, Jozef"]
[Black "Berezjuk, Sergej"]
[Result "1/2-1/2"]
[ECO "E46"]
[WhiteElo "2193"]
[BlackElo "2427"]
[Annotator "RC"]
[PlyCount "200"]
[EventDate "2018.09.30"]
[EventType "swiss"]
[EventCountry "SVK"]
[SourceTitle "playchess.com"]
[Source "ChessBase"]
[SourceQuality "1"]
[TimeControl "40/5400+30:1800+30"]

1. d4 {[%emt 0:00:00]} Nf6 {[%emt 0:00:00]} 2. c4 {[%emt 0:00:00]} e6 {[%emt 0:00:00]} 3. Nc3 {[%emt 0:00:00]} Bb4 {[%emt 0:00:00]} 4. e3 {[%emt 0:00:04]} O-O {[%emt 0:00:00]} 5. Nge2 {[%emt 0:00:18]} d5 {[%emt 0:00:00]} 6. a3 {[%emt 0:00:05]} Bd6 {[%emt 0:00:35]} 7. Ng3 {[%emt 0:05:17]} Nbd7 {[%emt 0:06:30]} 8. c5 {[%emt 0:05:39]} Be7 {[%emt 0:00:03]} 9. b4 {[%emt 0:00:06]} c6 {[%emt 0:00:07]} 10. Be2 {[%emt 0:00:53]} a5 {[%emt 0:03:07]} 11. Bb2 {[%emt 0:00:37]} b6 {[%emt 0:02:02]} 12. O-O {[%emt 0:02:35]} Ba6 {[%emt 0:02:50]} 13. f3 {[%emt 0:08:21]} Bxe2 {[%emt 0:04:58]} 14. Qxe2 {[%emt 0:00:24]} Ne8 {[%emt 0:06:15]} 15. e4 {[%emt 0:04:07]} Nc7 {[%emt 0:01:26]} 16. Rae1 {[%emt 0:14:34]} Bf6 {[%emt 0:11:09]} 17. e5 {[%emt 0:05:47]} Bh4 {[%emt 0:02:01]} 18. f4 {[%emt 0:09:27]} f5 {[%emt 0:09:31]} 19. exf6 {[%emt 0:00:30]} Bxf6 {[%emt 0:00:06]} 20. Rd1 {[%emt 0:04:10]} axb4 {[%emt 0:03:12]} 21. axb4 {[%emt 0:00:09]} bxc5 {[%emt 0:00:32]} 22. bxc5 {[%emt 0:04:18]} Qb8 {[%emt 0:01:05]} 23. Qc2 {[%emt 0:17:48]} Qb4 {[%emt 0:01:36]} 24. Nge2 {[%emt 0:00:09]} Qc4 {[%emt 0:07:56]} 25. Rd2 {[%emt 0:01:50]} Rfb8 {[%emt 0:03:10]} 26. Ra1 {[%emt 0:00:56]} Rxa1+ {[%emt 0:07:09]} 27. Bxa1 {[%emt 0:00:42]} Nxc5 {[%emt 0:06:50]} 28. dxc5 {[%emt 0:00:44]} Qxc5+ {[%emt 0:00:36]} 29. Kf1 {[%emt 0:01:39]} d4 {[%emt 0:02:16]} 30. Ne4 {[%emt 0:03:16]} Qxc2 {[%emt 0:00:20]} 31. Nxf6+ {[%emt 0:00:23]} gxf6 {[%emt 0:00:02]} 32. Rxc2 {[%emt 0:00:09]} d3 {[%emt 0:00:19]} 33. Rxc6 {[%emt 0:01:02]} Rb1+ {[%emt 0:02:45]} 34. Kf2 {[%emt 0:00:51]} d2 {[%emt 0:09:23]} 35. Nc3 {[%emt 0:05:28]} Nd5 {[%emt 0:01:16]} 36. Ke2 {[%emt 0:00:47]} Nxc3+ {[%emt 0:00:51]} 37. Kxd2 {[%emt 0:00:11]} Rd1+ {[%emt 0:00:59]} 38. Kxc3 {[%emt 0:03:13]} Rc1+ {[%emt 0:00:43]} 39. Kd3 {[%emt 0:00:06]} Rxc6 {[%emt 0:00:04]} 40. Bxf6 {[%emt 0:00:04]} Kf7 {[%emt 0:00:15]} 41. Be5 {[%emt 0:30:21]} h5 {[%emt 0:30:55]} 42. Ke4 {[%emt 0:03:17]} Ra6 {[%emt 0:01:46]} 43. Bd4 {[%emt 0:00:00]} Ra2 {[%emt 0:00:00]} 44. Kf3 {[%emt 0:00:00]} Kg6 {[%emt 0:00:00]} 45. h3 {[%emt 0:00:00]} Ra3+ {[%emt 0:00:00]} 46. Be3 {[%emt 0:00:00]} h4 {[%emt 0:00:00]} 47. Ke4 {[%emt 0:00:00]} Ra2 {[%emt 0:00:00]} 48. f5+ {[%emt 0:00:00]} exf5+ {[%emt 0:00:00]} 49. Kf3 {[%emt 0:00:00]} Ra3 {[%emt 0:00:00]} 50. Kf4 {[%emt 0:00:00]} Ra4+ {[%emt 0:00:00]} 51. Kf3 {[%emt 0:00:00]} Kf6 {[%emt 0:00:00]} 52. Bf4 {[%emt 0:00:00]} Rc4 {[%emt 0:00:00]} 53. Ke3 {[%emt 0:00:00]} Ke6 {[%emt 0:00:00]} 54. Kf3 {[%emt 0:00:00]} Kd5 {[%emt 0:00:00]} 55. Bg5 {[%emt 0:00:00]} Ke5 {[%emt 0:00:16]} 56. Kf2 {[%emt 0:00:00]} Ke6 {[%emt 0:00:53]} 57. Kf3 {[%emt 0:00:00]} Kf7 {[%emt 0:00:05]} 58. Bf4 {[%emt 0:00:00]} Kg6 {[%emt 0:00:05]} 59. Ke3 {[%emt 0:00:00]} Rc1 {[%emt 0:00:18]} 60. Kf2 {[%emt 0:00:00]} Rc8 {[%emt 0:01:05]} 61. Kf3 {[%emt 0:00:00]} Kf6 {[%emt 0:00:09]} 62. Ke3 {[%emt 0:00:00]} Rg8 {[%emt 0:00:56]} 63. Kf3 {[%emt 0:00:02]} Ke6 {[%emt 0:00:04]} 64. Bh2 {[%emt 0:00:29]} Ra8 {[%emt 0:01:01]} 65. Bf4 {[%emt 0:00:04]} Ra3+ {[%emt 0:01:00]} 66. Kf2 {[%emt 0:00:09]} Kf6 {[%emt 0:00:15]} 67. Ke2 {[%emt 0:00:18]} Ke6 {[%emt 0:01:00]} 68. Kf2 {[%emt 0:00:05]} Kd5 {[%emt 0:00:14]} 69. Bg5 {[%emt 0:00:18]} Ra4 {[%emt 0:00:07]} 70. Kf3 {[%emt 0:00:10]} Ke5 {[%emt 0:00:06]} 71. Kf2 {[%emt 0:00:16]} Rb4 {[%emt 0:02:19]} 72. Kf3 {[%emt 0:00:09]} Ra4 {[%emt 0:01:16]} 73. Kf2 {[%emt 0:00:07]} Re4 {[%emt 0:00:17]} 74. Kf3 {[%emt 0:00:18]} Kd4 {[%emt 0:00:01]} 75. Bf4 {[%emt 0:00:37]} Kd3 {[%emt 0:00:09]} 76. Bg5 {[%emt 0:00:03]} Kc2 {[%emt 0:00:17]} 77. Bf4 {[%emt 0:04:10]} Kd1 {[%emt 0:00:28]} 78. Be3 {[%emt 0:03:28]} Ke1 {[%emt 0:00:21]} 79. Bf2+ {[%emt 0:00:55]} Kf1 {[%emt 0:00:08]} 80. g4 {[%emt 0:00:39]} fxg4+ {[%emt 0:01:52]} 81. hxg4 {[%emt 0:00:07]} h3 {[%emt 0:01:22]} 82. Bg3 {[%emt 0:00:01]} Ra4 {[%emt 0:00:19]} 83. g5 {[%emt 0:00:04]} Kg1 {[%emt 0:00:44]} 84. Bf2+ {[%emt 0:00:12]} Kf1 {[%emt 0:01:55]} 85. Bg3 {[%emt 0:00:07]} Rb4 {[%emt 0:00:56]} 86. Bh2 {[%emt 0:01:39]} Rb2 {[%emt 0:01:44]} 87. Bg3 {[%emt 0:02:20]} Kg1 {[%emt 0:01:08]} 88. Kg4 {[%emt 0:01:23]} Kg2 {[%emt 0:00:17]} 89. Bd6 {[%emt 0:01:04]} Rb6 {[%emt 0:00:28]} 90. Bc7 {[%emt 0:00:16]} Rc6 {[%emt 0:00:09]} 91. Be5 {[%emt 0:00:22]} Rc5 {[%emt 0:01:45]} 92. Bb8 {[%emt 0:00:13]} Rc4+ {[%emt 0:01:12]} 93. Kf5 {[%emt 0:00:47]} Kf3 {[%emt 0:00:07]} 94. g6 {[%emt 0:00:15]} Rc8 {[%emt 0:00:51]} 95. Bd6 {[%emt 0:00:13]} Rd8 {[%emt 0:00:16]} 96. g7 {[%emt 0:01:16]} Rg8 {[%emt 0:00:06]} 97. Kf6 {[%emt 0:00:12]} Kg2 {[%emt 0:00:07]} 98. Kf7 {[%emt 0:00:05]} Rxg7+ {[%emt 0:00:05]} 99. Kxg7 {[%emt 0:00:04]} h2 {[%emt 0:00:03]} 100. Bxh2 {[%emt 0:00:06]} Kxh2 {[%emt 0:00:06]} 1/2-1/2

[Event "Tatry Open 2018"]
[Site "Tatranska Lomnica"]
[Date "2018.10.07"]
[Round "9"]
[White "Ramik, Zdenek"]
[Black "Chubar, Vladimir"]
[Result "1-0"]
[ECO "A20"]
[WhiteElo "2172"]
[BlackElo "2001"]
[Annotator "NA"]
[PlyCount "93"]
[EventDate "2018.09.30"]
[EventType "swiss"]
[EventCountry "SVK"]
[SourceTitle "playchess.com"]
[Source "ChessBase"]
[SourceQuality "1"]
[TimeControl "40/5400+30:1800+30"]

{[%evp 8,89,39,20,20,10,16,17,19,10,6,6,10,-1,14,0,32767,14,32767,14,32767,5,32767,0,17,32767,32767,32767,32767,32767,32767,0,32767,0,32767,32767,0,32767,32767,-31,-39,32767,32767,32767,32767,5,32767,32767,-99,32767,32767,32767,32767,127,185,217,480,500,504,540,480,516,32767,584,32767,32767,32767,415,584,292,546,643,493,487,32767,32767,32767,787,585,32767,735,32767,6291,548]} 1. c4 {[%emt 0:00:00]} e5 {[%emt 0:00:00]} 2. g3 {[%emt 0:00:01]} Nc6 {[%emt 0:00:00]} 3. Bg2 {[%emt 0:00:11]} Bc5 {[%emt 0:01:01]} 4. Nc3 {[%emt 0:01:20]} a6 {[%emt 0:13:22] A25: English Opening vs King's Indian with ...Nc6 but without early d3} 5. e3 {[%emt 0:01:07]} d6 {[%emt 0:00:48]} 6. Nge2 {[%emt 0:00:52]} (6. Nf3 Nf6 7. O-O O-O 8. h3 Ba7 9. d4 h6 10. dxe5 dxe5 11. Qxd8 Rxd8 12. b3 Be6 13. Ba3 Rd7 14. Rfd1 Rad8 15. Rxd7 Rxd7 {½-½ (41) Howell,D (2676)-Ponomariov,R (2694) Riadh 2017}) 6... Ba7 {[%emt 0:01:18]} 7. d4 {[%emt 0:02:25]} h5 {[%emt 0:02:24] LiveBook: 26 Partien} 8. d5 {[%emt 0:06:02]} Nce7 {[%emt 0:02:20]} 9. h4 $146 {[%emt 0:02:58]} ({Predecessor:} 9. Qd3 h4 10. h3 hxg3 11. fxg3 f5 12. Bd2 {0-1 (44) Cosme Contreras,T (1736)-Escalante Ramirez,B (2348) Lima 2015}) 9... Nf6 {[%emt 0:04:10]} 10. Qd3 {[%emt 0:14:03]} Rb8 {[%emt 0:17:10]} 11. b3 {[%emt 0:06:12]} Bf5 {[%emt 0:01:47]} 12. e4 {[%emt 0:00:45]} Bd7 {[%emt 0:00:12]} 13. Be3 {[%emt 0:01:05]} Bxe3 {[%emt 0:01:45]} 14. Qxe3 {[%emt 0:00:02]} b5 {[%emt 0:00:17]} 15. O-O {[%emt 0:00:42]} Ng4 {[%emt 0:03:53]} 16. Qd2 {[%emt 0:00:49]} bxc4 {[%emt 0:03:34]} 17. bxc4 {[%emt 0:00:03]} Rb4 {[%emt 0:00:51]} 18. f3 {[%emt 0:01:22]} Nh6 {[%emt 0:01:49]} 19. Qd3 {[%emt 0:03:29]} (19. c5 $14) 19... Qb8 {[%emt 0:02:30]} 20. Rab1 {[%emt 0:00:41]} Qb6+ {[%emt 0:00:29]} 21. Kh2 {[%emt 0:00:32]} O-O {[%emt 0:02:23]} 22. Rxb4 {[%emt 0:00:57]} Qxb4 {[%emt 0:00:08]} 23. Rb1 {[%emt 0:00:10]} Qc5 {[%emt 0:00:08]} 24. Nc1 {[%emt 0:02:05]} Ng6 {[%emt 0:02:23]} 25. Nb3 {[%emt 0:00:56]} Qa7 {[%emt 0:01:08]} 26. c5 {[%emt 0:06:20]} f5 {[%emt 0:03:15]} 27. c6 {[%emt 0:04:17] [#]} Bc8 $1 {[%emt 0:00:53]} 28. exf5 {[%emt 0:07:54]} Bxf5 {[%emt 0:00:41]} 29. Ne4 {[%emt 0:00:25]} Rb8 {[%emt 0:02:53] [#]} 30. Nbd2 $1 {[%emt 0:01:53]} Rxb1 {[%emt 0:06:39]} (30... Ne7 $16 {war einen Versuch wert.}) 31. Qxb1 {[%emt 0:00:21]} Kh7 $2 {[%emt 0:05:59]} (31... Qa8 32. Qb7 Qc8) 32. Ng5+ {[%emt 0:04:07]} Kh8 {[%emt 0:01:19] [#]} 33. Nf7+ $1 {[%emt 0:07:50]} Kh7 {[%emt 0:04:07] [#]} 34. Qb7 $1 {[%emt 0:00:51]} Qd4 {[%emt 0:01:46]} 35. Ng5+ {[%emt 0:00:48]} Kh8 {[%emt 0:00:23]} 36. Qb8+ {[%emt 0:00:51]} Ng8 {[%emt 0:00:07]} 37. Nde4 {[%emt 0:03:48]} Qxd5 $2 {[%emt 0:01:39]} (37... Bxe4 {is a better defense.} 38. fxe4 Qf2) 38. Qxc7 {[%emt 0:00:31]} Bxe4 $2 {[%emt 0:03:22]} (38... N6e7 39. Nxd6 Bg6) 39. fxe4 {[%emt 0:01:12]} Qxa2 {[%emt 0:02:24]} 40. Qd8 {[%emt 0:02:01]} Qf2 {[%emt 0:04:59]} 41. c7 {[%emt 0:31:26]} N6e7 {[%emt 0:18:51]} 42. c8=Q {[%emt 0:00:00]} Nxc8 {[%emt 0:00:35]} 43. Qxc8 {[%emt 0:00:00]} a5 {[%emt 0:01:33]} 44. Qe8 {[%emt 0:00:00]} Qe2 {[%emt 0:01:36]} 45. Nf3 $18 {[%emt 0:00:00]} (45. Qf7 $142 Nf6 46. Qf8+ Ng8 47. Qf5 Nf6 48. Qc8+ Ng8 49. Nf7+ Kh7 50. Qf5+ g6 51. Ng5+ Kh8 52. Qxg6 Qxg2+ 53. Kxg2 Ne7 54. Qh7#) 45... g6 {[%emt 0:06:30]} 46. Qxg6 {[%emt 0:00:00]} a4 {[%emt 0:01:55]} 47. Ng5 {[%emt 0:00:00]} 1-0

[Event "Tatry Open 2018"]
[Site "Tatranska Lomnica"]
[Date "2018.10.07"]
[Round "9"]
[White "Skreno, Vladimir"]
[Black "Meers, Hubert"]
[Result "1-0"]
[ECO "E95"]
[WhiteElo "2160"]
[BlackElo "1781"]
[Annotator "NA"]
[PlyCount "83"]
[EventDate "2018.09.30"]
[EventType "swiss"]
[EventCountry "SVK"]
[SourceTitle "playchess.com"]
[Source "ChessBase"]
[SourceQuality "1"]
[TimeControl "40/5400+30:1800+30"]

{[%evp 9,80,48,40,37,50,29,32767,22,39,-15,45,43,121,101,111,112,108,81,107,36,34,36,47,52,55,44,42,39,47,41,32767,36,32767,-13,32767,32767,32767,0,110,32767,32767,32767,95,32767,32767,97,32767,104,120,117,32767,32767,106,0,131,133,306,32767,32767,699,1798,10383,5381,29974,5493,11660,12827,29979,2613,29977,32767,32767,29976]} 1. d4 {[%emt 0:00:00]} Nf6 {[%emt 0:00:55]} 2. Nf3 {[%emt 0:00:00]} g6 {[%emt 0:00:08]} 3. c4 {[%emt 0:00:18]} Bg7 {[%emt 0:00:15]} 4. Nc3 {[%emt 0:00:08]} O-O {[%emt 0:00:08]} 5. e4 {[%emt 0:00:04]} d6 {[%emt 0:00:02]} 6. Be2 {[%emt 0:01:02] LiveBook: 39534 Partien} Nbd7 {[%emt 0:00:06]} 7. O-O {[%emt 0:00:57]} e5 {[%emt 0:00:32]} 8. Re1 {[%emt 0:00:46]} c6 {[%emt 0:00:47]} 9. a3 {[%emt 0:07:03] E95: King's Indian: Classical: 7...Nbd7 8 Re1} ({White should try} 9. Be3 $14) (9. Bf1 Qe7 10. h3 Ne8 11. a4 a5 12. b3 Nc7 13. Ba3 exd4 14. Nxd4 Nc5 15. e5 dxe5 16. Ne4 N7a6 17. Nxc5 Nxc5 {1-0 (59) Li,C (2732)-Onischuk,V (2637) Riadh 2017}) 9... Re8 {[%emt 0:01:55]} (9... exd4 $1 $11 10. Nxd4 Nc5) 10. d5 $146 {[%emt 0:00:24]} ({Predecessor:} 10. Bf1 a5 11. h3 exd4 12. Nxd4 Nc5 13. Bg5 h6 14. Bxf6 Bxf6 15. Rb1 a4 16. Qd2 Bg7 {0-1 (59) Ciolek,M (2085)-Zolobowski,G (2029) Kazimierz Dolny 2001}) 10... c5 {[%emt 0:05:58]} (10... Nc5 $14) 11. Bd2 {[%emt 0:02:40]} Rf8 {[%emt 0:00:24]} 12. Rb1 {[%emt 0:02:10]} Ne8 {[%emt 0:03:10]} 13. b4 {[%emt 0:01:39]} h6 {[%emt 0:02:33]} 14. bxc5 {[%emt 0:05:18]} (14. Qc1 $16) 14... Nxc5 {[%emt 0:02:12]} 15. Be3 {[%emt 0:00:49]} f5 {[%emt 0:05:30]} 16. Bxc5 {[%emt 0:02:56]} dxc5 {[%emt 0:00:05]} 17. Nd2 {[%emt 0:03:37]} Nd6 {[%emt 0:03:10]} 18. Nb5 {[%emt 0:03:24]} b6 {[%emt 0:13:59]} 19. Nxd6 {[%emt 0:13:03]} Qxd6 {[%emt 0:00:06]} 20. Rb2 {[%emt 0:02:39]} Bd7 {[%emt 0:02:42]} 21. Nb1 {[%emt 0:00:58]} fxe4 {[%emt 0:01:36]} 22. Bg4 {[%emt 0:22:04]} Bf5 {[%emt 0:03:50]} 23. Nc3 {[%emt 0:07:58]} Rae8 {[%emt 0:14:59]} (23... e3 $11 {remains equal.}) 24. Nxe4 {[%emt 0:02:18]} Bxe4 {[%emt 0:00:08]} 25. Rxe4 {[%emt 0:00:24]} Rf4 {[%emt 0:02:08]} 26. Rbe2 {[%emt 0:03:24]} Ref8 {[%emt 0:04:53]} 27. g3 {[%emt 0:02:56]} Rxe4 {[%emt 0:01:31]} 28. Be6+ {[%emt 0:00:13]} Kh7 {[%emt 0:02:26]} 29. Rxe4 {[%emt 0:00:02]} Re8 $1 {[%emt 0:02:12]} 30. Bg4 {[%emt 0:01:33]} Rf8 {[%emt 0:02:26]} 31. Be6 {[%emt 0:00:13]} ({White should play} 31. Qd3 $16) 31... Re8 {[%emt 0:00:26]} 32. Qc2 {[%emt 0:00:40]} Qd8 $2 {[%emt 0:04:21]} (32... Rf8 $16 33. Rg4 Rf6) 33. Rg4 {[%emt 0:01:31]} Qf6 {[%emt 0:00:07] [#]} 34. Rxg6 $1 {[%emt 0:00:27]} Qd8 {[%emt 0:00:56]} 35. Bf7 {[%emt 0:02:40]} e4 {[%emt 0:00:55]} 36. Bxe8 {[%emt 0:00:38]} Qxe8 {[%emt 0:00:09]} 37. Re6 {[%emt 0:00:10]} Qh5 {[%emt 0:00:23]} 38. Qxe4+ {[%emt 0:00:16]} Kg8 {[%emt 0:00:07]} 39. Kg2 {[%emt 0:02:05]} Qf7 {[%emt 0:00:39]} 40. d6 {[%emt 0:00:54]} Bf6 {[%emt 0:00:25]} 41. d7 {[%emt 0:31:09]} Qxd7 {[%emt 0:30:06]} 42. Rxf6 {[%emt 0:00:18]} 1-0